Cogmind - Beta 13 @@@ ROGUE MODE // 2024.04.26 @ 17:26:57 Player: Skysub Result: Destroyed by 8L-U0P(R) with Subdweller Machine Gun Performance ------------- Evolutions (0) 0 Regions Visited (3) 600 Robots Destroyed (24) 120 Value Destroyed (592) 592 Prototype IDs (0) 0 Alien Tech Used (0) 0 Bonus (0) 0 TOTAL SCORE: 1312 Bonus ------- None Cogmind --------- Core Integrity 0/250 Matter 177/300 Energy 143/160 System Corruption 0% Temperature Cool (0) Movement Walking (260) Ox2 Location -10/Subcaves Parts ------- > --- POWER (1) -------- Light Nuclear Core > --- PROPULSION (2) --- Aluminum Leg > --- UTILITY (2) ------ Small Storage Unit Structural Scanner > --- WEAPON (2) ------- Assault Rifle Bore Cannon > --- INVENTORY (8) ---- Light Ion Engine Subdweller Optics Sensor Array Targeting Computer Targeting Computer Assault Rifle Subdweller Machine Gun Rocket Launcher Peak State ------------ > --- POWER ------------ Light Nuclear Core > --- PROPULSION ------- Aluminum Leg > --- UTILITY ---------- Small Storage Unit Structural Scanner > --- WEAPON ----------- Subdweller Machine Gun Bore Cannon > --- INVENTORY -------- Light Ion Engine Subdweller Optics Sensor Array Targeting Computer Targeting Computer Assault Rifle Assault Rifle Rocket Launcher [Rating: 14] Favorites ----------- Power Light Nuclear Core Engine Ion Engine Power Core Light Nuclear Core Propulsion Aluminum Leg Leg Aluminum Leg Utility Small Storage Unit Device Structural Scanner Storage Small Storage Unit Weapon Assault Rifle Energy Cannon Subdweller Beam Cannon Ballistic Gun Assault Rifle Ballistic Cannon Bore Cannon Launcher Grenade Launcher Build | -11 -10 -10 -10 ------- Run | Yrd Mat Min Sub Slots Evolved . | . . . . Power . | . . . . Propulsion . | . . . . Utility . | . . . . Weapon . | . . . . Parts Attached 28 | 6 6 8 8 Power 2 | 1 . 1 . Engine 1 | 1 . . . Core 1 | . . 1 . Reactor . | . . . . Propulsion 5 | 2 . 3 . Treads . | . . . . Leg 5 | 2 . 3 . Wheel . | . . . . Hover . | . . . . Flight . | . . . . Utility 3 | 1 2 . . Device 2 | . 2 . . Storage 1 | 1 . . . Processor . | . . . . Hackware . | . . . . Protection . | . . . . Artifact . | . . . . Weapon 18 | 2 4 4 8 Energy Gun . | . . . . Energy Cannon 1 | . . . 1 Ballistic Gun 10 | 2 2 2 4 Ballistic Cannon 3 | . . 1 2 Launcher 4 | . 2 1 1 Special Weapon . | . . . . Impact Weapon . | . . . . Slashing Weapon . | . . . . Piercing Weapon . | . . . . Special Melee Weapon . | . . . . Unidentified Prototypes . | . . . . Parts Lost 2 | . . 1 1 Power . | . . . . Propulsion 2 | . . 1 1 Utility . | . . . . Weapon . | . . . . Highest Loss Streak 1 | . . 1 1 To Critical Strikes . | . . . . Average Slot Usage (%) 98 | . 98 99 98 Engine 5 | . 14 8 . Core 8 | . . 5 14 Leg 27 | . 28 27 26 Device 13 | . 12 14 14 Storage 14 | . 14 14 14 Ballistic Gun 20 | . 22 16 22 Ballistic Cannon 2 | . . 5 1 Launcher 4 | . 5 6 2 Naked Turns . | . . . . Heaviest Build 22 | 13 16 22 22 Greatest Support 20 | 20 20 20 20 Greatest Overweight (x) 1 | . . 1 1 Average Overweight (x) . | . . . . Largest Inventory Capacity 8 | 8 8 8 8 Average Capacity 7 | 6 8 8 8 Most Carried 8 | . 8 8 8 Average Carried 7 | . 4 7 7 Final Capacity 8 | 8 8 8 8 Final Carried 8 | . 8 8 8 Class Distribution -------------------- 100% | Mutant Dominant Class ---------------- Mutant | -10/Materials Mutant | -10/Mines Mutant | -10/Subcaves Resources | -11 -10 -10 -10 ----------- Run | Yrd Mat Min Sub Matter Collected 830 | 231 154 212 233 Remotely . | . . . . Salvage Created 638 | . 298 215 125 Parts 48 | . 21 19 8 Haulers Intercepted 2 | . 2 . . Recyclers Shooed . | . . . . Parts Field Recycled . | . . . . Retrieved Matter . | . . . . Parts Self-Destructed 13 | . . . 13 Prevented . | . . . . Kills | -11 -10 -10 -10 ------- Run | Yrd Mat Min Sub Combat Hostiles Destroyed 18 | . 7 7 4 Guns 4 | . 1 2 1 Cannons 3 | . . 2 1 AOE 11 | . 6 3 2 Classes Destroyed 8 | . 4 3 1 Worker 2 | . 2 . . Builder 1 | . . 1 . Hauler 2 | . 2 . . Recycler 1 | . . 1 . Swarmer 6 | . 3 3 . Grunt 6 | . 4 2 . Sentry 3 | . . 2 1 Subdweller 3 | . . . 3 Best Kill Streak 9 | . 9 3 2 Combat Bots Only 7 | . 7 3 2 Max Kills in Single Turn 3 | . 3 1 1 Gunslinging . | . . . . Exploded 3 | . 3 1 1 Melee . | . . . . Uniques/NPCs Destroyed . | . . . . Combat | -11 -10 -10 -10 -------- Run | Yrd Mat Min Sub Hostile Shots Fired 76 | . 15 43 18 Missed 22 | . 6 10 6 Damage Taken 888 | . 89 445 354 Core 264 | . 6 139 119 Absorbed by Shields . | . . . . Core Remaining (%) 100 | 100 . . . Volleys Fired 56 | . 15 24 17 Largest 2 | . 2 2 2 Hottest 87 | . 50 77 87 Shots Fired 101 | . 27 48 26 Gun 59 | . 19 30 10 Cannon 26 | . . 14 12 Launcher 16 | . 8 4 4 Special . | . . . . Kinetic 81 | . 19 44 18 Thermal 4 | . . . 4 Explosive 16 | . 8 4 4 Electromagnetic . | . . . . Robot Hit Streak 14 | . 3 9 14 Robot Miss Streak 3 | . 3 3 1 Penetration Max . | . . . . Secondary Targets . | . . . . Shots Hit Robots 65 | . 13 35 17 Core Hits 34 | . 15 13 6 Critical Kills 2 | . . 2 . Critical Parts Destroyed 6 | . . 5 1 Critical Strikes 13 | . . 10 3 Destroy 13 | . . 10 3 Melee Attacks . | . . . . Impact . | . . . . Slashing . | . . . . Piercing . | . . . . Sneak Attacks . | . . . . Combat Hostiles . | . . . . Follow-up Attacks . | . . . . Damage Inflicted 1665 | . 454 679 532 Guns 522 | . 141 264 117 Cannons 408 | . . 253 155 Explosions 735 | . 313 162 260 Melee . | . . . . Ramming . | . . . . Kinetic 930 | . 141 517 272 Thermal . | . . . . Explosive 735 | . 313 162 260 Electromagnetic . | . . . . Impact . | . . . . Slashing . | . . . . Piercing . | . . . . Highest Corruption . | . . . . Average Corruption . | . . . . Corruption Purged . | . . . . Corruption Blocked . | . . . . Overload Shots . | . . . . Overflow Damage 20 | . 20 . . Projectiles . | . . . . Explosions 20 | . 20 . . Melee . | . . . . Knockbacks 2 | . . . 2 Impact . | . . . . Kinetic 2 | . . . 2 Secondary . | . . . . Self-Inflicted Damage 13 | . 6 7 . Shots 2 | . 1 1 . Rammed . | . . . . Targets Rammed . | . . . . Kicked . | . . . . Crushed . | . . . . Highest Temperature 264 | . 5 264 4 Average Temperature 104 | . 3 121 3 Received Heat Transfer 201 | . 18 156 27 Siege Activations . | . . . . Robots Corrupted . | . . . . Combat Hostiles . | . . . . Parts Fried . | . . . . Impact Corruptions . | . . . . Robots Melted . | . . . . Combat Hostiles . | . . . . Parts Melted . | . . . . Heat Transferred . | . . . . Parts Sabotaged . | . . . . Parts Stolen . | . . . . Parts Stripped . | . . . . Power Chain Reactions . | . . . . Alert | -11 -10 -10 -10 ------- Run | Yrd Mat Min Sub Peak Influence 315 | . 315 187 . Initial 122 | . . 122 . Average 121 | . 104 138 . Maximum Alert Level 1 | . 1 . . Low Security (%) 89 | 100 66 100 . Level 1 10 | . 33 . . Level 2 . | . . . . Level 3 . | . . . . Level 4 . | . . . . Level 5 . | . . . . High Security . | . . . . Max Security . | . . . . Squads Dispatched 1 | . 1 . . Investigation . | . . . . Extermination . | . . . . Reinforcement 1 | . 1 . . Assault . | . . . . Garrison . | . . . . Intercept . | . . . . Searches Triggered . | . . . . Construction Impeded . | . . . . Haulers Reinforced . | . . . . Active Scanning Responses . | . . . . Cargo Convoy Interrupts . | . . . . Stealth | -11 -10 -10 -10 --------- Run | Yrd Mat Min Sub Distress Signals . | . . . . Communications Jammed . | . . . . Distress Signals . | . . . . Times Spotted 25 | . 11 8 6 Peak Tracking Total 4 | . 4 3 2 Tactical Retreats 1 | . . 1 . Traps | -11 -10 -10 -10 ------- Run | Yrd Mat Min Sub Traps Triggered 1 | . . . 1 Indirectly . | . . . . Trap Hack Attempts . | . . . . Triggered . | . . . . Disarmed . | . . . . Reprogrammed . | . . . . Reused . | . . . . Traps Extracted . | . . . . Installed . | . . . . Triggered . | . . . . Machines | -11 -10 -10 -10 ---------- Run | Yrd Mat Min Sub Machines Disabled 3 | . 3 . . Max in Single Turn 1 | . 1 . . Machines Repaired . | . . . . Machines Dismantled . | . . . . Machines Sabotaged . | . . . . Overloaded Fab Kills . | . . . . Hacking | -11 -10 -10 -10 --------- Run | Yrd Mat Min Sub Machines Accessed 3 | . 3 . . Terminals 3 | . 3 . . Fabricators . | . . . . Repair Stations . | . . . . Recycling Units . | . . . . Scanalyzers . | . . . . Garrison Access . | . . . . Total Hacks 8 | . 8 . . Successful 1 | . 1 . . Failed 7 | . 7 . . Catastrophic 2 | . 2 . . Database Lockouts . | . . . . Manual 8 | . 8 . . Terminals 8 | . 8 . . Fabricators . | . . . . Repair Stations . | . . . . Recycling Units . | . . . . Scanalyzers . | . . . . Garrison Access . | . . . . Terminal Hacks 1 | . 1 . . Branch Access Points 1 | . 1 . . Fabricator Hacks . | . . . . Repair Station Hacks . | . . . . Recycling Unit Hacks . | . . . . Scanalyzer . | . . . . Garrison Access Hacks . | . . . . Unauthorized Hacks . | . . . . Terminals . | . . . . Fabricators . | . . . . Repair Stations . | . . . . Recycling Units . | . . . . Scanalyzers . | . . . . Garrison Access . | . . . . Data Cores Recovered . | . . . . Used . | . . . . Hacking Detections 2 | . 2 . . Full Trace Events . | . . . . Feedback Events . | . . . . Feedback Blocked . | . . . . Robot Schematics Acquired . | . . . . Robots Built . | . . . . Authchips . | . . . . Time . | . . . . Total Robot Build Rating . | . . . . Part Schematics Acquired . | . . . . Parts Built . | . . . . Authchips . | . . . . Time . | . . . . Total Part Build Rating . | . . . . Parts Repaired . | . . . . Time . | . . . . Parts Recycled . | . . . . Recycled Matter . | . . . . Retrieved Matter . | . . . . Retrieved Components . | . . . . Parts Scanalyzed . | . . . . Part Schematics Acquired . | . . . . Parts Damaged . | . . . . Bothacking | -11 -10 -10 -10 ------------ Run | Yrd Mat Min Sub Used RIF Installer . | . . . . Robots Hacked . | . . . . Non-combat . | . . . . Combat . | . . . . Robot Hacks Applied . | . . . . Relay Couplers Released . | . . . . Fabnet Peak Effective % . | . . . . Robots Rewired . | . . . . Allies Hacked . | . . . . Hacks Repelled . | . . . . Allies | -11 -10 -10 -10 -------- Run | Yrd Mat Min Sub Total Allies . | . . . . Largest Group . | . . . . Highest-Rated Group . | . . . . Highest-Rated Ally . | . . . . Total Orders . | . . . . Ally Attacks . | . . . . Total Damage . | . . . . Kills . | . . . . Allies Corrupted . | . . . . Allies Melted . | . . . . Intel | -11 -10 -10 -10 ------- Run | Yrd Mat Min Sub Robot Analysis Total . | . . . . Derelict Logs Recovered 2 | . . 2 . Drone Launches . | . . . . Drone Recoveries . | . . . . Exploration | -11 -10 -10 -10 ------------- Run | Yrd Mat Min Sub Turns Passed 2038 | 47 373 726 892 Spaces Moved 1321 | 34 219 455 613 Core 3 | 3 . . . Treads . | . . . . Legs 1318 | 31 219 455 613 Wheels . | . . . . Hover . | . . . . Flight . | . . . . Fastest Speed 50 | 50 120 120 120 Average Speed 132 | 113 120 138 134 Slowest Speed 190 | 120 120 190 190 Overloaded Moves . | . . . . Propulsion Burnouts . | . . . . Robots Hopped . | . . . . Cave-ins Triggered . | . . . . Exploration Rate (%) 43 | 4 42 82 47 Regions Visited 3 Branch Regions 2 Pre-discovered Areas 1 | . . 1 . Known Exits Taken 1 | . 1 . . Unknown Exits Taken 2 | 1 . 1 . Scrap Searched 2 | . . 1 1 Spaces Dug 10 | . 6 . 4 Terrain Destroyed 105 | . 41 47 17 Melee . | . . . . Projectile 15 | . . 9 6 AOE 90 | . 41 38 11 Terrain Rammed . | . . . . Walls Destroyed . | . . . . Machines Disabled . | . . . . Actions | -11 -10 -10 -10 --------- Run | Yrd Mat Min Sub Total 1494 | 39 301 505 649 Wait 65 | . 53 7 5 Move 1318 | 33 218 454 613 Hop . | . . . . Pick Up 15 | . 8 4 3 Fast Attach 8 | 6 1 1 . Attach . | . . . . Detach . | . . . . Swap 20 | . 5 7 8 Drop 12 | . 1 8 3 Fire 56 | . 15 24 17 Melee . | . . . . Ram . | . . . . Kick . | . . . . Crush . | . . . . Escape Stasis . | . . . . Rewire . | . . . . Trap . | . . . . Miscellaneous . | . . . . Route ------- -11/Scrapyard -10/Materials (discovered 4 exits: [*Mat x2] / *Min x2) -10/Mines (discovered 3 exits: [*Mat x2] / [*Sub]) -10/Subcaves History --------- Turn | Location | Event 7 | -11/Scrapyard | Discovered new exit (range 15) 48 | -11/Scrapyard | Entered Materials 64 | -10/Materials | Discovered new exit (range 16) 265 | -10/Materials | Discovered new exit (range 7) 305 | -10/Materials | Build established: Mutant 318 | -10/Materials | Destroyed 7 combat bots 336 | -10/Materials | Discovered new exit (range 12) 375 | -10/Materials | Discovered new exit (range 7) 390 | -10/Materials | Identified exit to Mines 421 | -10/Materials | Entered Mines 453 | -10/Mines | A weapon hastily lodged in a ceiling crevice suddenly fell to the ground 770 | -10/Mines | Discovered new exit (range 7) 926 | -10/Mines | Core integrity fell below 50% 966 | -10/Mines | Discovered new exit (range 5) 1008 | -10/Mines | Discovered new exit (range 3) 1013 | -10/Mines | Received a Rocket Launcher from a helpful Derelict 1024 | -10/Mines | Learned Materials interactive machine intel 1147 | -10/Mines | Entered Subcaves 1267 | -10/Subcaves | Shifting Twisted Machinery released Sub. Beam Cannon 2028 | -10/Subcaves | Core integrity fell below 20% 2039 | -10/Subcaves | Destroyed by 8L-U0P(R) with Subdweller Machine Gun Last Messages --------------- Dropped Sub. Beam Cannon. Acquired Sub. Machine Gun. Acquired 16 matter. Dropped Targeting Computer. Acquired Sub. Optics. TW-WXL(R) destroyed. Aluminum Leg destroyed. WV-ZZC(R) affixes Scrap Shield Fragment to Scrap Shield. Subatomizers dissect the Sub. Monowheel. WV-ZZC(R) destroyed. Subatomizers dissect the Sub. Monowheel. 8L-U0P(R) suffers critical hit (Destroy). 8L-U0P(R) knocked back. HV Slug penetrates Wall. Sub. Machine Gun shoots sparks and powers down. 8L-U0P(R) suffers critical hit (Destroy). 8L-U0P(R) knocked back. HV Slug penetrates Twisted Machinery. HV Slug penetrates Wall. HV Slug penetrates 8L-U0P(R). Map ----- +----------------------------------------------------+ | ## ##### "## ###??????????????? | | #### ##??????????????? | | ## ### ##??????????????? | | # ## ######### ### ###??????????????? | | ################ ###########????????????? | | #########???##### ### ###########????????????? | | ???????????###### #### ####### ##????????????? | | ???????????### ### #### ## ???????????? | | ?????????#### ### ## ???????????? | | ?????????## ### ?????????? | | ?????????##### ##### ##?????????? | | ?????????########## ####?????????? | | ?????????### ###### ## ###??????????? | | ?????????## ## ###???????????? | | ?????????## ###???????????? | | ?????????### ##????????????? | | ?????????### ##????????????? | | ??????????###### ## ##????????????? | | ??????????###### ### ###########????????????? | | ??????????????### ### ############???????????? | | ??????????????#### ?## ##??????######?????????? | | ???????????????######## % ##????? ####?????????? | | ????????????????####### #### ? ##?????????? | | ?????????????????#####%"R#### ##?????????? | | ?????????????????## "" ##?????????? | | ?????????????????## "R @ ###?????????? | | ?????????????? "" ###??????????? | | ??????????????? ## "" ## ###???????????? | | ???????????????###"""" ####?####???????????? | | ????????????????##" " ###??###????????????? | | ????????????????## ##?????????????????? | | ????????????????########### ###?????????????????? | | ????????????????################?????????????????? | | ??????????????????????????#####??????????????????? | | ?????????????????????????????????????????????????? | | ?????????????????????????????????????????????????? | | ?????????????????????????????????????????????????? | | ?????????????????????????????????????????????????? | | ?????????????????????????????????????????????????? | | ?????????????????????????????????????????????????? | | ?????????????????????????????????????????????????? | | ?????????????????????????????????????????????????? | | ?????????????????????????????????????????????????? | | ?????????????????????????????????????????????????? | | ?????????????????????????????????????????????????? | | ?????????????????????????????????????????????????? | | ?????????????????????????????????????????????????? | | | | | | | +----------------------------------------------------+ Best States ------------- Heat Dissipation 25 Energy Generation 14 Energy Capacity 250 Matter Stores 300 Matter Capacity 300 Sight Range 16 Robot Scan Range 14 Terrain Scan Density 10 Evasion (%) 55 Item Schematics ----------------- None Robot Schematics ------------------ None Fabricated ------------ Nothing Alien Tech Used ----------------- None Achievements -------------- None Challenges ------------ None Game ------ Seed SkeletonGravmagWeb Manual? 0 Play Time 00:18:41 Cumulative 47.1 hours Start 2024.04.26 @ 17:09:19 End 2024.04.26 @ 17:26:57 Sessions 1 Manual Loads 0 Difficulty Rogue Special Mode None Game No. 37 Rogue 37 Adventurer 0 Explorer 0 Win Type - Total 1 Types 1/0/0/0/0/0/0/0/0 Lore% 28 Gallery% 45 Achievement% 34 Wizard Run 0 Options --------- Layout 1 ASCII 0 Keyboard 1 Movement Numpad Keybinds 0 Fullscreen 1 Font 32/SmallcapsGlow Map View 77x35 Zoom Use 0% Tactical HUD 0 Map Filters NONE Filters NONE Steam 1 RUN: 55afc873-a0b7-42ec-bd17-7d8f1502780d